fUSD/lending_fUSD_20260203
["ID","MTS","AMOUNT","RATE_DAILY","PERIOD"]
[404412269,1770117046248,-1000.0,0.000178,2]
[404412270,1770117046256,-265.955963,0.000178,2]
[404412271,1770117046265,-265.955963,0.000178,2]
[404412272,1770117046274,-265.955963,0.000178,2]
[404412273,1770117046283,-151.0,0.000178,2]
[404412274,1770117046292,-265.955963,0.000178,2]
[404412275,1770117046301,-151.0,0.000178,2]
[404412276,1770117046310,-151.0,0.000178,2]
[404412277,1770117046319,-151.0,0.000178,2]
[404412278,1770117046327,-978.330486,0.000178,2]
[404412279,1770117046336,-978.330486,0.000178,2]
[404412280,1770117046345,-978.330486,0.000178,2]
[404412281,1770117046355,-978.330486,0.000178,2]
[404412282,1770117046363,-151.0,0.000178,2]
[404412283,1770117046373,-151.0,0.000178,2]
[404412284,1770117046382,-323.940209,0.000178,2]
[404412285,1770117046391,-151.0,0.000178,2]
[404412286,1770117046400,-323.940209,0.000178,2]
[404412287,1770117046409,-948.911815,0.000178,2]
[404412288,1770117046418,-151.0,0.000178,2]
[404412289,1770117046427,-323.940209,0.000178,2]
[404412290,1770117046437,-948.911815,0.000178,2]
[404412291,1770117046446,-151.0,0.000178,2]
[404412292,1770117046455,-323.940209,0.000178,2]
[404412293,1770117046464,-948.911815,0.000178,2]
[404412294,1770117046473,-151.0,0.000178,2]
[404412295,1770117046482,-948.911815,0.000178,2]
[404412296,1770117046491,-2553.362838,0.000178,2]
[404412297,1770117046500,-2553.362838,0.000178,2]
[404412298,1770117046508,-2553.362838,0.000178,2]
[404412299,1770117046518,-2553.362838,0.000178,2]
[404412300,1770117046527,-1783.437104,0.000178,2]
[404412301,1770117046536,-1783.437104,0.000178,2]
[404412302,1770117046546,-1783.437104,0.000178,2]
[404412303,1770117046556,-1783.437104,0.000178,2]
[404412304,1770117046565,-900.0,0.000178,6]
[404412305,1770117046574,-150.0,0.00017806,2]
[404412306,1770117046583,-1000.0,0.00017808,2]
[404412307,1770117046592,-2000.0,0.0001782,2]
[404412308,1770117046602,-2000.0,0.0001782,2]
[404412309,1770117046611,-264.0,0.00017828,2]
[404412310,1770117046621,-1000.0,0.00017836,2]
[404412311,1770117046630,-1000.0,0.00017852,2]
[404412312,1770117046639,-150.0,0.00017855,2]
[404412313,1770117046649,-200.0,0.00017856,2]
[404412314,1770117046658,-1000.0,0.0001786,2]
[404412315,1770117046668,-1265.13779333,0.00017863,2]
[404412316,1770117046677,-25000.0,0.00017882,3]
[404412317,1770117046686,-5888.0,0.00017888,2]
[404412318,1770117046695,-25000.0,0.00017891,3]
[404412319,1770117046704,-457.87,0.00017899,20]
[404412320,1770117046713,-5000.0,0.000179,2]
[404412321,1770117046722,-151.0,0.000179,2]
[404412322,1770117046731,-151.0,0.000179,2]
[404412323,1770117046740,-151.0,0.000179,2]
[404412324,1770117046749,-25000.0,0.000179,3]
[404412325,1770117046758,-160.0,0.000179,3]
[404412326,1770117046768,-23106.24832845,0.000179,3]
[404412327,1770117046777,-1470.0,0.000179,6]
[404412328,1770117046786,-1968.02091488,0.000179,2]
[404412329,1770117046795,-2662.46744209,0.000179,2]
[404412330,1770117046806,-361.84102799,0.00017915,2]
[404412331,1770117046815,-341.83713414,0.00017915,2]
[404412332,1770117046824,-1000.0,0.00017922,2]
[404412333,1770117046834,-5888.0,0.00017924,2]
[404412334,1770117046843,-1000.0,0.00017929,2]
[404412335,1770117046852,-150.0,0.00017929,2]
[404412336,1770117046861,-1000.0,0.00017931,2]
[404412337,1770117046870,-150.0,0.00017947,2]
[404412338,1770117046879,-150.0,0.00017953,2]
[404412339,1770117046888,-1000.0,0.00017955,2]
[404412340,1770117046897,-1000.0,0.00017955,2]
[404412341,1770117046906,-400.7491143,0.0001797,2]
[404412342,1770117046915,-983.42551089,0.00017971,2]
[404412343,1770117046924,-457.87,0.00017973,21]
[404412344,1770117046933,-457.87,0.00017973,21]
[404412345,1770117046943,-457.87,0.00017973,21]
[404412346,1770117046952,-457.87,0.00017973,21]
[404412347,1770117046967,-458.03207191,0.00017973,21]
[404412348,1770117046976,-500.0,0.00017982,2]
[404412349,1770117046985,-182692.0214374,0.00017998,2]
[404412350,1770117046995,-5888.0,0.00017998,2]
[404412351,1770117047005,-155.0,0.00017999,2]
[404412352,1770117047015,-313.9472948,0.00017999,2]
[404412353,1770117047024,-300.0,0.00017999,2]
[404412354,1770117047035,-300.0,0.00017999,2]
[404412355,1770117047045,-300.0,0.00017999,2]
[404412356,1770117047055,-2390619.39599832,0.00018,2]
[404412357,1770117047340,-26356.24939062,0.00018,2]
[404412358,1770117047351,-765.93076401,0.00018,2]
[404412359,1770117047361,-1427.900885,0.00018,2]
[404412360,1770117047376,-732.18335078,0.00018,2]
[404412361,1770117047400,-50505.98515546,0.00018,2]
[404412362,1770117047412,-1059.44336652,0.00018,2]
[404412363,1770117047431,-495.68719811,0.00018,2]
[404412364,1770117047444,-801.54783843,0.00018,2]
[404412365,1770117047455,-348.7328232,0.00018,2]
[404412366,1770117047467,-763.33645519,0.00018,2]
[404412367,1770117047545,-1.7e-07,0.00018,2]
[404412368,1770117047582,-209163.94103248,0.00018,2]
[404412369,1770117047594,-1229.73677688,0.00018,2]
[404412370,1770117048184,-150.01364122,8.215e-05,2]
[404412371,1770117048193,-150.01364122,0.00010569,2]
[404412372,1770117048203,-150.01364122,0.00011746,2]
[404412373,1770117048213,-105.82909134,0.00013699,2]
[404412374,1770117048750,5000.01,7.883e-05,2]
[404412375,1770117048945,-474.209881,7.883e-05,2]
[404412376,1770117048986,-7221.51347684,7.883e-05,2]
[404412377,1770117049255,-3573.34425131,7.883e-05,2]
[404412378,1770117049275,-5000.01,7.883e-05,2]
[404412379,1770117049290,-5000.01,7.883e-05,2]
[404412380,1770117049303,-5000.01,7.883e-05,2]
[404412381,1770117049321,-5000.01,7.883e-05,2]
[404412382,1770117049334,-5000.01,7.883e-05,2]
[404412383,1770117049347,-5000.01,7.883e-05,2]
[404412384,1770117049360,-5000.01,7.883e-05,2]
[404412385,1770117050291,-5000.01,7.883e-05,2]
[404412386,1770117053107,-5000.01,7.883e-05,2]
[404412387,1770117053230,-5000.01,7.883e-05,2]
[404412388,1770117053370,-5000.01,7.883e-05,2]
[404412389,1770117053493,-5000.01,7.883e-05,2]
[404412390,1770117053639,-5000.01,7.883e-05,2]
[404412391,1770117053779,-5000.01,7.883e-05,2]
[404412392,1770117053938,-5000.01,7.883e-05,2]
[404412393,1770117054058,-5000.01,7.883e-05,2]
[404412394,1770117061826,300.0,7.882e-05,2]
[404412400,1770117083462,400.0,7.7e-05,2]
[404412401,1770117085554,800.0,7.8e-05,2]
[404412402,1770117092572,3949.32,7.725e-05,2]
[404412403,1770117092689,338.352,7.725e-05,2]
[404412404,1770117121588,300.0,7.882e-05,2]
[404412405,1770117121883,150.0,7.882e-05,2]
[404412406,1770117121983,300.0,7.882e-05,2]
[404412407,1770117122313,300.0,7.882e-05,2]
[404412408,1770117126631,499.99999999,7.882e-05,2]
[404412409,1770117126738,816.25475121,7.882e-05,2]
[404412410,1770117126822,816.25475121,7.882e-05,2]
[404412411,1770117126920,816.25475121,7.882e-05,2]
[404412412,1770117127249,213.57374638,7.882e-05,2]
[404412413,1770117127273,602.68100483,7.882e-05,2]
[404412414,1770117127311,816.25475121,7.882e-05,2]
[404412415,1770117127359,816.25475121,7.882e-05,2]
[404412416,1770117127402,816.25475121,7.882e-05,2]
[404412417,1770117127446,816.25475121,7.882e-05,2]
[404412418,1770117127484,816.25475121,7.882e-05,2]
[404412419,1770117127543,816.25475121,7.882e-05,2]
[404412420,1770117127583,816.25475121,7.882e-05,2]
[404412421,1770117127632,816.25475121,7.882e-05,2]
[404412422,1770117127683,816.25475121,7.882e-05,2]
[404412423,1770117127724,816.25475121,7.882e-05,2]
[404412424,1770117127778,816.25475121,7.882e-05,2]
[404412425,1770117127819,418.52673186,7.882e-05,2]
[404412426,1770117127843,397.72801935,7.882e-05,2]
[404412427,1770117127888,816.25475121,7.882e-05,2]
[404412428,1770117127931,816.25475121,7.882e-05,2]
[404412429,1770117127976,816.25475121,7.882e-05,2]
[404412430,1770117128031,816.25475121,7.882e-05,2]
[404412431,1770117128086,816.25475121,7.882e-05,2]
[404412432,1770117128128,816.25475121,7.882e-05,2]
[404412433,1770117128176,816.25475121,7.882e-05,2]
[404412434,1770117128222,816.25475121,7.882e-05,2]
[404412435,1770117128276,816.25475121,7.882e-05,2]
[404412436,1770117128318,816.25475121,7.882e-05,2]
[404412437,1770117128359,816.25475121,7.882e-05,2]
[404412438,1770117128398,623.47971734,7.882e-05,2]
[404412439,1770117128423,192.77503387,7.882e-05,2]
[404412440,1770117128474,816.25475121,7.882e-05,2]
[404412441,1770117128518,816.25475121,7.882e-05,2]
[404412442,1770117128559,816.25475121,7.882e-05,2]
[404412443,1770117128599,816.25475121,7.882e-05,2]
[404412444,1770117128664,816.25475121,7.882e-05,2]
[404412445,1770117128716,816.25475121,7.882e-05,2]
[404412446,1770117128757,816.25475121,7.882e-05,2]
[404412447,1770117128797,816.25475121,7.882e-05,2]
[404412448,1770117128845,816.25475121,7.882e-05,2]
[404412449,1770117128885,816.25475121,7.882e-05,2]
[404412450,1770117128925,816.25475121,7.882e-05,2]
[404412451,1770117128965,816.25475121,7.882e-05,2]
[404412452,1770117129009,12.17795161,7.882e-05,2]
[404412453,1770117129035,804.0767996,7.882e-05,2]
[404412454,1770117129089,816.25475121,7.882e-05,2]
[404412455,1770117129128,816.25475121,7.882e-05,2]
[404412456,1770117129169,816.25475121,7.882e-05,2]
[404412457,1770117129209,816.25475121,7.882e-05,2]
[404412458,1770117129254,816.25475121,7.882e-05,2]
[404412459,1770117129300,816.25475121,7.882e-05,2]
[404412460,1770117129347,816.25475121,7.882e-05,2]
[404412461,1770117129385,816.25475121,7.882e-05,2]
[404412462,1770117129455,816.25475121,7.882e-05,2]
[404412463,1770117129494,816.25475121,7.882e-05,2]
[404412464,1770117129575,816.25475121,7.882e-05,2]
[404412465,1770117129623,217.13093709,7.882e-05,2]
[404412466,1770117129648,599.12381412,7.882e-05,2]
[404412467,1770117129736,816.25475121,7.882e-05,2]
[404412468,1770117129811,816.25475121,7.882e-05,2]
[404412469,1770117129865,816.25475121,7.882e-05,2]
[404412470,1770117129911,816.25475121,7.882e-05,2]
[404412471,1770117130471,816.25475121,7.882e-05,2]
[404412472,1770117130510,816.25475121,7.882e-05,2]
[404412473,1770117130549,816.25475121,7.882e-05,2]
[404412474,1770117130608,816.25475121,7.882e-05,2]
[404412475,1770117130655,816.25475121,7.882e-05,2]
[404412476,1770117130697,816.25475121,7.882e-05,2]
[404412477,1770117130738,816.25475121,7.882e-05,2]
[404412478,1770117130818,151.0,7.88e-05,2]
[404412479,1770117181705,271.08392257,7.882e-05,2]
[404412480,1770117181729,28.91607743,7.882e-05,2]
[404412484,1770117208852,1968.0209149,7.883e-05,2]
[404412485,1770117241997,300.0,7.882e-05,2]
[404412487,1770117301565,300.0,7.882e-05,2]
[404412488,1770117301602,193.0,7.882e-05,2]
[404412489,1770117301923,1200.0,7.882e-05,2]
[404412490,1770117302447,150.0,7.882e-05,2]
[404412491,1770117302488,223.0,7.882e-05,2]
[404412493,1770117319808,500.0,7.882e-05,2]
[404412494,1770117319861,500.0,7.882e-05,2]
[404412495,1770117319917,500.0,7.882e-05,2]
[404412496,1770117320001,500.0,7.882e-05,2]
[404412497,1770117320065,500.0,7.882e-05,2]
[404412498,1770117320137,500.0,7.882e-05,2]
[404412499,1770117320203,500.0,7.882e-05,2]
[404412500,1770117320258,500.0,7.882e-05,2]
[404412501,1770117320317,500.0,7.882e-05,2]
[404412502,1770117320366,500.0,7.882e-05,2]
[404412503,1770117320418,500.0,7.882e-05,2]
[404412504,1770117320474,137.07300767,7.882e-05,2]
[404412505,1770117320509,362.92699233,7.882e-05,2]
[404412506,1770117320565,500.0,7.882e-05,2]
[404412507,1770117320620,500.0,7.882e-05,2]
[404412508,1770117320684,500.0,7.882e-05,2]
[404412509,1770117320744,500.0,7.882e-05,2]
[404412510,1770117320794,500.0,7.882e-05,2]
[404412511,1770117320856,500.0,7.882e-05,2]
[404412512,1770117320905,500.0,7.882e-05,2]
[404412513,1770117320967,334.99045466,7.882e-05,2]
[404412514,1770117321015,500.0,7.882e-05,2]
[404412515,1770117321062,500.0,7.882e-05,2]
[404412516,1770117321110,500.0,7.882e-05,2]
[404412517,1770117321179,500.0,7.882e-05,2]
[404412518,1770117321225,500.0,7.882e-05,2]
[404412519,1770117321282,500.0,7.882e-05,2]
[404412520,1770117321342,500.0,7.882e-05,2]
[404412521,1770117321389,500.0,7.882e-05,2]
[404412522,1770117321446,500.0,7.882e-05,2]
[404412523,1770117321517,500.0,7.882e-05,2]
[404412524,1770117321567,500.0,7.882e-05,2]
[404412525,1770117321638,302.09255301,7.882e-05,2]
[404412526,1770117321670,197.90744699,7.882e-05,2]
[404412527,1770117321729,500.0,7.882e-05,2]
[404412528,1770117329138,1312.01394326,7.883e-05,2]
[404412529,1770117331330,500.0,7.882e-05,2]
[404412530,1770117331379,500.0,7.882e-05,2]
[404412531,1770117331424,500.0,7.882e-05,2]
[404412532,1770117331464,500.0,7.882e-05,2]
[404412533,1770117331507,500.0,7.882e-05,2]
[404412534,1770117331546,500.0,7.882e-05,2]
[404412535,1770117331584,500.0,7.882e-05,2]
[404412536,1770117331629,500.0,7.882e-05,2]
[404412537,1770117357348,3990.08860975,7.783e-05,2]
[404412538,1770117357375,10000.01,7.783e-05,2]
[404412539,1770117357399,5000.01,7.783e-05,2]
[404412540,1770117357422,5000.01,7.783e-05,2]
[404412541,1770117357446,5000.01,7.783e-05,2]
[404412542,1770117357472,5000.01,7.783e-05,2]
[404412543,1770117357496,5000.01,7.783e-05,2]
[404412544,1770117357520,5000.01,7.783e-05,2]
[404412545,1770117357545,5000.01,7.783e-05,2]
[404412546,1770117357569,5000.01,7.783e-05,2]
[404412547,1770117357593,5000.01,7.783e-05,2]
[404412548,1770117357618,10000.01,7.783e-05,2]
[404412549,1770117357643,10000.01,7.783e-05,2]
[404412550,1770117357666,10000.01,7.783e-05,2]
[404412551,1770117357691,10000.01,7.783e-05,2]
[404412552,1770117357715,10000.01,7.783e-05,2]
[404412553,1770117357740,10000.01,7.783e-05,2]
[404412554,1770117357766,10000.01,7.783e-05,2]
[404412555,1770117358260,-2985.85915754,7.783e-05,2]
[404412556,1770117363798,-302.0,7.783e-05,2]
[404412557,1770117365422,-309.42108336,7.783e-05,2]
[404412558,1770117366878,-200.0,7.783e-05,2]
[404412559,1770117368540,-300.0,7.783e-05,2]
[404412560,1770117370336,-728.97051473,7.783e-05,2]
[404412561,1770117371589,-10000.01,7.783e-05,2]
[404412562,1770117371626,-10000.01,7.783e-05,2]
[404412563,1770117371650,-10000.01,7.783e-05,2]
[404412564,1770117371793,-10000.01,7.783e-05,2]
[404412565,1770117371847,-1797.15415386,7.783e-05,2]
[404412566,1770117372243,-10000.01,7.783e-05,2]
[404412567,1770117372321,-10000.01,7.783e-05,2]
[404412568,1770117372445,-10000.01,7.783e-05,2]
[404412569,1770117372559,-10000.01,7.783e-05,2]
[404412570,1770117372670,-10000.01,7.783e-05,2]
[404412571,1770117373204,-10000.01,7.783e-05,2]
[404412572,1770117373387,-10000.01,7.783e-05,2]
[404412573,1770117373594,-10000.01,7.783e-05,2]
[404412574,1770117373760,-10000.01,7.783e-05,2]
[404412575,1770117481987,150.0,7.782e-05,2]
[404412576,1770117482172,300.0,7.782e-05,2]
[404412579,1770117498392,4550.01,7.773e-05,2]
[404412580,1770117498412,5000.01,7.773e-05,2]
[404412581,1770117498432,5000.01,7.773e-05,2]
[404412582,1770117498452,5000.01,7.773e-05,2]
[404412583,1770117498471,5000.01,7.773e-05,2]
[404412584,1770117498492,5000.01,7.773e-05,2]
[404412585,1770117498511,1279.68,7.773e-05,2]
[404412586,1770117507447,1200.0,7.782e-05,2]
[404412589,1770117572543,611.36272693,7.772e-05,2]
[404412590,1770117574458,874.67596218,7.783e-05,2]
[404412592,1770117601874,300.0,7.782e-05,2]
[404412593,1770117601914,1200.0,7.782e-05,2]
[404412594,1770117604098,216.0,7.783e-05,2]
[404412598,1770117661829,150.0,7.782e-05,2]
[404412599,1770117682473,5447.97131089,7.683e-05,2]
[404412600,1770117682499,10000.01,7.683e-05,2]
[404412601,1770117682527,10000.01,7.683e-05,2]
[404412602,1770117682553,10000.01,7.683e-05,2]
[404412603,1770117682578,10000.01,7.683e-05,2]
[404412604,1770117682603,10000.01,7.683e-05,2]
[404412605,1770117682628,10000.01,7.683e-05,2]
[404412606,1770117682652,10000.01,7.683e-05,2]
[404412607,1770117682679,10000.01,7.683e-05,2]
[404412608,1770117682710,5000.01,7.683e-05,2]
[404412609,1770117682736,5000.01,7.683e-05,2]
[404412610,1770117682761,5000.01,7.683e-05,2]
[404412611,1770117682784,5000.01,7.683e-05,2]
[404412612,1770117682808,5000.01,7.683e-05,2]
[404412613,1770117682832,5000.01,7.683e-05,2]
[404412614,1770117682855,5000.01,7.683e-05,2]
[404412615,1770117682878,5000.01,7.683e-05,2]
[404412616,1770117682902,5000.01,7.683e-05,2]
[404412617,1770117683356,-1376.4768139,7.683e-05,2]
[404412618,1770117686983,-261.40109204,7.683e-05,2]
[404412619,1770117688436,-177.71399708,7.683e-05,2]
[404412620,1770117689847,-300.0,7.683e-05,2]
[404412621,1770117691260,-302.0,7.683e-05,2]
[404412622,1770117692607,3159.456,7.627e-05,2]
[404412623,1770117692685,270.682,7.627e-05,2]
[404412624,1770117692718,-250.0,7.683e-05,2]
[404412625,1770117694815,-299.49061193,7.683e-05,2]
[404412626,1770117697289,-560.22087833,7.683e-05,2]
[404412627,1770117699191,-822.01390266,7.683e-05,2]
[404412628,1770117700542,-469.22422718,7.683e-05,2]
[404412629,1770117702579,-450.19080258,7.683e-05,2]
[404412630,1770117704478,-439.10829603,7.683e-05,2]
[404412631,1770117705992,-500.0,7.683e-05,2]
[404412632,1770117709826,-200.0,7.683e-05,2]
[404412633,1770117711406,-389.59890796,7.683e-05,2]
[404412634,1770117722214,300.0,7.682e-05,2]
[404412635,1770117724379,500.0,7.683e-05,2]
[404412636,1770117724417,1129.60682712,7.683e-05,2]
[404412637,1770117724453,2410.32589039,7.683e-05,2]
[404412638,1770117732067,151.0,7.68e-05,2]
[404412641,1770117743894,2078.93928249,7.683e-05,2]
[404412642,1770117743916,832.63742056,7.683e-05,2]
[404412643,1770117753708,184.68754554,7.682e-05,2]
[404412644,1770117753745,496.51021741,7.682e-05,2]
[404412645,1770117753923,377.16657906,7.682e-05,2]
[404412646,1770117755709,887.11852184,7.682e-05,2]
[404412647,1770117755746,500.0,7.682e-05,2]
[404412648,1770117755784,345.3758937,7.682e-05,2]
[404412649,1770117755819,505.78336998,7.682e-05,2]
[404412650,1770117755854,500.0,7.682e-05,2]
[404412651,1770117755886,304.80303952,7.682e-05,2]
[404412652,1770117755922,500.0,7.682e-05,2]
[404412653,1770117755960,500.0,7.682e-05,2]
[404412654,1770117756008,887.11852184,7.682e-05,2]
[404412655,1770117756078,887.11852184,7.682e-05,2]
[404412656,1770117756115,304.72805336,7.682e-05,2]
[404412657,1770117756157,537.49958958,7.682e-05,2]
[404412658,1770117756205,500.0,7.682e-05,2]
[404412659,1770117756253,887.11852184,7.682e-05,2]
[404412660,1770117756312,62.34420393,7.682e-05,2]
[404412661,1770117756338,824.77431791,7.682e-05,2]
[404412662,1770117756385,500.0,7.682e-05,2]
[404412663,1770117756426,887.11852184,7.682e-05,2]
[404412664,1770117756484,887.11852184,7.682e-05,2]
[404412665,1770117756534,500.0,7.682e-05,2]
[404412666,1770117756594,887.11852184,7.682e-05,2]
[404412667,1770117756653,887.11852184,7.682e-05,2]
[404412668,1770117756691,236.96976356,7.682e-05,2]
[404412669,1770117756767,500.0,7.682e-05,2]
[404412670,1770117756816,887.11852184,7.682e-05,2]
[404412671,1770117756867,887.11852184,7.682e-05,2]
[404412672,1770117756914,587.70866956,7.682e-05,2]
[404412673,1770117756952,887.11852184,7.682e-05,2]
[404412674,1770117756999,640.72759609,7.682e-05,2]
[404412675,1770117757023,246.39092575,7.682e-05,2]
[404412676,1770117757076,887.11852184,7.682e-05,2]
[404412677,1770117757126,887.11852184,7.682e-05,2]
[404412678,1770117757183,887.11852184,7.682e-05,2]
[404412679,1770117757236,887.11852184,7.682e-05,2]
[404412680,1770117757286,887.11852184,7.682e-05,2]
[404412681,1770117757338,887.11852184,7.682e-05,2]
[404412682,1770117757402,887.11852184,7.682e-05,2]
[404412683,1770117757464,887.11852184,7.682e-05,2]
[404412684,1770117757508,887.11852184,7.682e-05,2]
[404412685,1770117757792,887.11852184,7.682e-05,2]
[404412686,1770117757858,882.43385585,7.682e-05,2]
[404412687,1770117757882,4.68466599,7.682e-05,2]
[404412688,1770117757923,887.11852184,7.682e-05,2]
[404412689,1770117757984,887.11852184,7.682e-05,2]
[404412690,1770117758040,887.11852184,7.682e-05,2]
[404412691,1770117758090,887.11852184,7.682e-05,2]
[404412692,1770117758140,887.11852184,7.682e-05,2]
[404412693,1770117758188,887.11852184,7.682e-05,2]
[404412694,1770117758239,887.11852184,7.682e-05,2]
[404412695,1770117758295,887.11852184,7.682e-05,2]
[404412696,1770117758357,887.11852184,7.682e-05,2]
[404412697,1770117758401,887.11852184,7.682e-05,2]
[404412698,1770117758451,887.11852184,7.682e-05,2]
[404412699,1770117758516,237.02159377,7.682e-05,2]
[404412700,1770117758541,650.09692807,7.682e-05,2]
[404412701,1770117758595,887.11852184,7.682e-05,2]
[404412702,1770117758645,887.11852184,7.682e-05,2]
[404412703,1770117758695,887.11852184,7.682e-05,2]
[404412704,1770117758741,887.11852184,7.682e-05,2]
[404412705,1770117758788,887.11852184,7.682e-05,2]
[404412706,1770117758833,887.11852184,7.682e-05,2]
[404412707,1770117758879,887.11852184,7.682e-05,2]
[404412708,1770117758937,887.11852184,7.682e-05,2]
[404412709,1770117759011,887.11852184,7.682e-05,2]
[404412710,1770117759062,887.11852184,7.682e-05,2]
[404412711,1770117759130,478.72785353,7.682e-05,2]
[404412712,1770117759154,408.39066831,7.682e-05,2]
[404412713,1770117759200,887.11852184,7.682e-05,2]
[404412714,1770117759242,887.11852184,7.682e-05,2]
[404412715,1770117759285,887.11852184,7.682e-05,2]
[404412716,1770117759326,887.11852184,7.682e-05,2]
[404412717,1770117759369,887.11852184,7.682e-05,2]
[404412718,1770117759411,887.11852184,7.682e-05,2]
[404412719,1770117759467,887.11852184,7.682e-05,2]
[404412720,1770117759513,887.11852184,7.682e-05,2]
[404412721,1770117759562,887.11852184,7.682e-05,2]
[404412722,1770117759605,887.11852184,7.682e-05,2]
[404412723,1770117759644,720.43411329,7.682e-05,2]
[404412724,1770117759668,166.68440855,7.682e-05,2]
[404412725,1770117759710,887.11852184,7.682e-05,2]
[404412726,1770117759767,887.11852184,7.682e-05,2]
[404412727,1770117759811,887.11852184,7.682e-05,2]
[404412728,1770117781697,300.0,7.682e-05,2]
[404412729,1770117782521,500.0,7.682e-05,2]
[404412730,1770117782566,500.0,7.682e-05,2]
[404412731,1770117782612,500.0,7.682e-05,2]
[404412732,1770117782653,500.0,7.682e-05,2]
[404412733,1770117782695,500.0,7.682e-05,2]
[404412734,1770117782734,500.0,7.682e-05,2]
[404412735,1770117782772,500.0,7.682e-05,2]
[404412736,1770117782813,500.0,7.682e-05,2]
[404412737,1770117782850,500.0,7.682e-05,2]
[404412738,1770117782896,500.0,7.682e-05,2]
[404412739,1770117782935,500.0,7.682e-05,2]
[404412740,1770117782977,500.0,7.682e-05,2]
[404412741,1770117783025,500.0,7.682e-05,2]
[404412742,1770117783065,371.97002593,7.682e-05,2]
[404412743,1770117783089,128.02997407,7.682e-05,2]
[404412744,1770117783127,500.0,7.682e-05,2]
[404412745,1770117783166,500.0,7.682e-05,2]
[404412746,1770117783215,500.0,7.682e-05,2]
[404412747,1770117783572,500.0,7.682e-05,2]
[404412748,1770117783610,500.0,7.682e-05,2]
[404412749,1770117783660,347.42009822,7.682e-05,2]
[404412750,1770117783701,500.0,7.682e-05,2]
[404412751,1770117783739,500.0,7.682e-05,2]
[404412752,1770117783777,500.0,7.682e-05,2]
[404412753,1770117783817,500.0,7.682e-05,2]
[404412754,1770117783856,500.0,7.682e-05,2]
[404412755,1770117783895,500.0,7.682e-05,2]
[404412756,1770117783932,500.0,7.682e-05,2]
[404412757,1770117783996,500.0,7.682e-05,2]
[404412758,1770117784034,500.0,7.682e-05,2]
[404412759,1770117784402,500.0,7.682e-05,2]
[404412760,1770117784448,500.0,7.682e-05,2]
[404412761,1770117784494,500.0,7.682e-05,2]
[404412762,1770117784536,500.0,7.682e-05,2]
[404412763,1770117784574,500.0,7.682e-05,2]
[404412764,1770117784612,24.55992771,7.682e-05,2]
[404412765,1770117784635,475.44007229,7.682e-05,2]
[404412766,1770117784673,500.0,7.682e-05,2]
[404412767,1770117784712,500.0,7.682e-05,2]
[404412768,1770117784753,500.0,7.682e-05,2]
[404412769,1770117784794,500.0,7.682e-05,2]
[404412770,1770117784854,500.0,7.682e-05,2]
[404412771,1770117784893,500.0,7.682e-05,2]
[404412772,1770117784935,500.0,7.682e-05,2]
[404412773,1770117784986,500.0,7.682e-05,2]
[404412774,1770117807319,1200.0,7.682e-05,2]
[404412775,1770117819898,657.70095638,7.683e-05,2]
[404412776,1770117841882,150.0,7.682e-05,2]
[404412777,1770117841935,300.0,7.682e-05,2]
[404412778,1770117842635,300.0,7.682e-05,2]
[404412779,1770117866270,500.0,7.682e-05,2]
[404412780,1770117866316,500.0,7.682e-05,2]
[404412781,1770117866365,500.0,7.682e-05,2]
[404412782,1770117866406,500.0,7.682e-05,2]
[404412783,1770117866449,500.0,7.682e-05,2]
[404412784,1770117866486,416.86897133,7.682e-05,2]
[404412785,1770117866511,8.31305642,7.682e-05,2]
[404412786,1770117866549,500.0,7.682e-05,2]
[404412787,1770117866588,500.0,7.682e-05,2]
[404412788,1770117866633,500.0,7.682e-05,2]